[Event "44th Chess Olympiad Open 2022"]
[Site "Chennai"]
[Date "2022.08.03"]
[Round "6.58"]
[White "Kulpruethanon, Thanadon"]
[Black "Al Thebaiti Ahmed M"]
[Result "1-0"]
[WhiteElo "2294"]
[BlackElo "1966"]
[Annotator "TA"]
[PlyCount "127"]
[EventDate "2022.??.??"]
[TimeControl "60"]

{[%evp 14,127,25,22,25,29,22,20,23,20,144,130,345,358,372,341,331,338,340,320,
330,314,295,265,320,326,303,288,295,279,300,299,341,337,343,347,350,333,350,
354,408,398,370,350,370,370,370,358,369,350,353,354,304,267,253,247,281,282,
354,334,350,338,379,372,342,295,389,383,419,426,467,458,635,631,625,620,601,
382,502,577,686,686,684,684,643,641,634,568,751,745,1037,1028,1112,1070,1041,
977,1113,1043,978,977,1005,813,839,841,943,966,995,958,1106,1067,1353,1343,
2082,1743,29980,29981]} 1. d4 {[%emt 0:00:03]} d5 {[%emt 0:00:10]} 2. c4 {
[%emt 0:00:08]} dxc4 {[%emt 0:00:11]} 3. e4 {[%emt 0:00:14][%cal Ye2e4,Ye4e5]}
Nf6 {[%emt 0:00:11][%cal Yg8f6,Yf6d5,Yd5b6]} 4. e5 {[%emt 0:00:14]} Nd5 {
[%emt 0:00:07]} 5. Bxc4 {[%emt 0:00:11]} Nb6 {[%emt 0:00:00]} 6. Bd3 {[%emt 0:
00:35]} Nc6 {[%emt 0:00:09]} 7. Be3 {[%emt 0:00:20]} Nb4 {[%emt 0:01:11]} 8.
Be4 {[%emt 0:00:59]} f5 {[%emt 0:01:57] D20: Queen's Gambit Accepted: 3 e3 and
3 e4.} 9. a3 {[%emt 0:00:45]} N4d5 {[%emt 0:08:05]} 10. Bxd5 $1 {[%emt 0:04:27]
outshines the older 10.Bf3.} Qxd5 {[%emt 0:05:35] The position is equal.} 11.
Nf3 {[%emt 0:07:15] [#]} Qb5 $146 {[%emt 0:25:25] [#]} (11... e6 $11 {keeps
the balance.}) ({Predecessor:} 11... Be6 12. Nc3 Qd7 13. Ng5 O-O-O 14. Nxe6
Qxe6 15. a4 Nd5 16. a5 Qa6 17. Qe2 Qxe2+ 18. Kxe2 e6 19. a6 b6 20. Nb5 Kb8 21.
Rhc1 Nb4 22. Rxc7 {1-0 (22) Bluebaum,M (2647)-Berger,S (2408) Magdeburg 2020})
12. Nc3 $1 $16 {[%emt 0:12:41][%cal Yb1c3,Yc3d1,Yd1e3]} Qxb2 {[%emt 0:13:15] 
[#]} (12... Qa6 $16) 13. Bd2 $1 $18 {[%emt 0:00:00]} Bd7 {[%emt 0:04:03]} 14.
Ra2 {[%emt 0:02:55][%cal Ya1a2,Ya2b2,Yb2c2,Yc2c3,Yc3b3] Trapped Piece} Ba4 {
[%emt 0:02:07] And now ...Qxa2 would win.} 15. Rxb2 {[%emt 0:00:29]} Bxd1 {
[%emt 0:00:07]} 16. Nxd1 {[%emt 0:02:29]} O-O-O {[%emt 0:00:25]} 17. Rc2 {
[%emt 0:02:26]} e6 {[%emt 0:00:36]} 18. Bc1 {[%emt 0:02:00]} h6 {[%emt 0:00:11]
} 19. h4 {[%emt 0:00:25][%cal Yh2h4,Yh4h5]} Rd5 {[%emt 0:02:02]} 20. Ne3 {
[%emt 0:08:36]} Ra5 {[%emt 0:00:53]} 21. Rc3 {[%emt 0:02:39]} Ra4 {[%emt 0:01:
50]} 22. g3 {[%emt 0:01:19]} Kd7 {[%emt 0:00:55]} 23. h5 {[%emt 0:01:40]} Be7 {
[%emt 0:00:15]} 24. Ke2 {[%emt 0:00:00]} c6 {[%emt 0:00:13]} 25. Rb3 {[%emt 0:
01:21]} Rd8 {[%emt 0:01:03]} 26. Ng2 {[%emt 0:02:53]} Ke8 {[%emt 0:00:10]} 27.
Nf4 {[%emt 0:00:56]} Kf7 {[%emt 0:00:10]} 28. Ng6 {[%emt 0:03:41]} Rd5 {
[%emt 0:00:51]} 29. Nxe7 {[%emt 0:00:48]} Kxe7 {[%emt 0:00:06]} 30. Bd2 {
[%emt 0:03:39]} Rb5 {[%emt 0:00:00]} 31. Bb4+ {[%emt 0:05:56]} Kf7 {[%emt 0:00:
12]} 32. Rhb1 {[%emt 0:00:36]} Nd5 {[%emt 0:00:42]} 33. Kf1 {[%emt 0:01:48]} b6
{[%emt 0:01:55]} 34. Kg2 {[%emt 0:01:32]} a6 {[%emt 0:00:52]} 35. Bd2 {[%emt 0:
02:56]} Ke8 {[%emt 0:00:00]} 36. Rxb5 {[%emt 0:00:36]} cxb5 {[%emt 0:00:53]}
37. Bb4 {[%emt 0:00:23]} Kf7 {[%emt 0:01:30]} 38. Nh4 {[%emt 0:07:40]} a5 {
[%emt 0:00:19]} 39. Bd6 {[%emt 0:00:28]} Rxd4 {[%emt 0:00:13]} 40. Rxb5 {
[%emt 0:01:20]} f4 {[%emt 0:00:00]} 41. Nf3 {[%emt 0:31:40]} Rd3 {[%emt 0:30:
29]} 42. g4 {[%emt 0:00:48]} g5 {[%emt 0:01:13]} 43. Rb2 {[%emt 0:02:46]} Rc3 {
[%emt 0:03:03]} 44. Rd2 {[%emt 0:00:00]} Rc4 {[%emt 0:02:30]} 45. Rd3 {[%emt 0:
13:48]} Rc2 {[%emt 0:02:07]} 46. Nd4 {[%emt 0:00:00]} Rb2 {[%emt 0:01:05]} 47.
Kf3 {[%emt 0:00:14]} Rb1 {[%emt 0:00:48]} 48. Rd2 {[%emt 0:00:00]} Rh1 {
[%emt 0:00:00]} 49. Kg2 {[%emt 0:00:00]} Rc1 {[%emt 0:00:00]} 50. Rc2 {[%emt 0:
00:00] Prevents Rc4.} Rd1 {[%emt 0:00:00]} 51. Nf3 {[%emt 0:00:00]} Rd3 {
[%emt 0:00:00]} 52. Rc8 {[%emt 0:00:00]} Rd1 {[%emt 0:00:00]} 53. Rf8+ {
[%emt 0:00:00]} Kg7 {[%emt 0:00:00]} 54. Rd8 {[%emt 0:00:00]} Rd3 {[%emt 0:00:
00]} 55. Rd7+ {[%emt 0:00:00]} Kg8 {[%emt 0:00:00]} 56. Rb7 {[%emt 0:00:00]}
Rd1 {[%emt 0:00:00]} 57. Bc7 {[%emt 0:00:00]} Rd3 {[%emt 0:00:00]} 58. a4 {
[%emt 0:03:42]} Rb3 {[%emt 0:00:00]} 59. Nd4 {[%emt 0:00:00]} f3+ {[%emt 0:00:
00]} 60. Kg3 {[%emt 0:00:00]} Rb4 {[%emt 0:00:00]} 61. Nxe6 {[%emt 0:00:00]}
Rxa4 {[%emt 0:00:00]} 62. Bxb6 {[%emt 0:00:00]} Re4 {[%emt 0:00:00]} 63. Bd4 {
[%emt 0:00:00]} Nf4 {[%emt 0:00:00]} 64. Kxf3 {[%emt 0:00:00] White took
control after the opening. Weighted Error Value: White=0.09 (flawless) /
Black=0.39} 1-0

[Event "44th Chess Olympiad Open 2022"]
[Site "Chennai"]
[Date "2022.08.03"]
[Round "6.58"]
[White "Arunnuntapanich, Tinnakrit"]
[Black "Alzamil, Abdulaziz"]
[Result "1-0"]
[WhiteElo "2117"]
[BlackElo "1871"]
[Annotator "NA RC"]
[PlyCount "107"]
[EventDate "2022.??.??"]
[TimeControl "60"]

1. d4 {[%emt 0:00:01]} d5 {[%emt 0:00:07]} 2. c4 {[%emt 0:00:04]} c6 {[%emt 0:
00:00]} 3. Nc3 {[%emt 0:00:16]} Nf6 {[%emt 0:00:10]} 4. cxd5 {[%emt 0:00:34]}
cxd5 {[%emt 0:00:23]} 5. Bf4 {[%emt 0:00:14]} Nc6 {[%emt 0:03:48]} 6. Nf3 {
[%emt 0:00:59]} e6 {[%emt 0:02:44]} 7. e3 {[%emt 0:00:12]} Bd6 {[%emt 0:01:37]}
8. Bg3 {[%emt 0:08:09]} O-O {[%emt 0:03:38]} 9. Bd3 {[%emt 0:00:10]} a6 {
[%emt 0:02:17]} 10. Rc1 {[%emt 0:00:43]} h6 {[%emt 0:05:41]} 11. O-O {[%emt 0:
00:00]} Bxg3 {[%emt 0:00:23]} 12. hxg3 {[%emt 0:00:02]} Qd6 {[%emt 0:00:38]}
13. a3 {[%emt 0:02:30]} Bd7 {[%emt 0:03:03]} 14. b4 {[%emt 0:16:57]} b5 {
[%emt 0:03:56]} 15. Qb3 {[%emt 0:01:56]} Rfc8 {[%emt 0:04:27]} 16. Rc2 {
[%emt 0:03:52]} e5 {[%emt 0:09:18]} 17. dxe5 {[%emt 0:14:59]} Nxe5 {[%emt 0:00:
00]} 18. Nxe5 {[%emt 0:00:20]} Qxe5 {[%emt 0:00:02]} 19. Rd1 {[%emt 0:00:45]}
Be6 {[%emt 0:08:18]} 20. Qb2 {[%emt 0:03:19]} Qh5 {[%emt 0:04:34]} 21. Be2 {
[%emt 0:03:09]} Bg4 {[%emt 0:17:13]} 22. f3 {[%emt 0:04:50]} Be6 {[%emt 0:00:
00]} 23. Rd4 {[%emt 0:03:39]} Qe5 {[%emt 0:03:32]} 24. Kf2 {[%emt 0:00:12]} Rc7
{[%emt 0:09:30]} 25. a4 {[%emt 0:07:47]} Bf5 {[%emt 0:04:09]} 26. Rc1 {[%emt 0:
00:00]} Re8 {[%emt 0:00:54]} 27. Qd2 {[%emt 0:00:45]} bxa4 {[%emt 0:04:37]} 28.
Nxa4 {[%emt 0:01:05]} Rxc1 {[%emt 0:00:30]} 29. Qxc1 {[%emt 0:00:02]} Rc8 {
[%emt 0:00:20]} 30. Qe1 {[%emt 0:12:26]} Rc2 {[%emt 0:02:54]} 31. Rd2 {[%emt 0:
00:00]} Rc7 {[%emt 0:04:06]} 32. Qd1 {[%emt 0:01:20]} Re7 {[%emt 0:00:25]} 33.
Qb3 {[%emt 0:00:25]} Be6 {[%emt 0:00:50]} 34. Rd4 {[%emt 0:00:15]} Qc7 {
[%emt 0:00:57]} 35. Qc3 {[%emt 0:01:14]} Qe5 {[%emt 0:00:33]} 36. Rh4 {[%emt 0:
00:00]} Qd6 {[%emt 0:00:36]} 37. Nc5 {[%emt 0:00:47]} Rc7 {[%emt 0:00:21]} 38.
Qa3 {[%emt 0:00:26]} Bc8 {[%emt 0:00:31]} 39. Rd4 {[%emt 0:01:30]} Nh5 {
[%emt 0:00:23]} 40. g4 {[%emt 0:00:50]} Nf6 {[%emt 0:00:44]} 41. Qa2 {[%emt 0:
00:00]} Qb6 {[%emt 0:03:46]} 42. Nxa6 {[%emt 0:00:00]} Ra7 {[%emt 0:01:18]} 43.
b5 {[%emt 0:00:00]} Bd7 {[%emt 0:00:58]} 44. Qa4 {[%emt 0:00:00]} Be8 {[%emt 0:
00:00]} 45. Rb4 {[%emt 0:00:00]} Re7 {[%emt 0:02:03]} 46. Rb3 {[%emt 0:00:00]}
Rd7 {[%emt 0:03:45]} 47. Qd4 {[%emt 0:00:00]} Qxd4 {[%emt 0:01:15]} 48. exd4 {
[%emt 0:00:00]} Rb7 {[%emt 0:00:14]} 49. Nc5 {[%emt 0:00:00]} Rb8 {[%emt 0:00:
00]} 50. b6 {[%emt 0:00:00]} Bc6 {[%emt 0:01:38]} 51. b7 {[%emt 0:00:00]} Ne8 {
[%emt 0:00:46]} 52. Rb6 {[%emt 0:00:00]} Nd6 {[%emt 0:01:39]} 53. Rxc6 {
[%emt 0:00:00]} Nxb7 {[%emt 0:00:11]} 54. Rb6 {[%emt 0:00:00]} 1-0

[Event "44th Chess Olympiad Open 2022"]
[Site "Chennai"]
[Date "2022.08.03"]
[Round "6.58"]
[White "Alrehaili, Ahmed Abdullah S"]
[Black "Jingjang, Shin"]
[Result "1-0"]
[WhiteElo "1986"]
[BlackElo "1956"]
[Annotator "NA RC"]
[PlyCount "115"]
[EventDate "2022.??.??"]
[TimeControl "60"]

1. e4 {[%emt 0:00:44]} e6 {[%emt 0:00:18]} 2. d3 {[%emt 0:00:12]} d5 {[%emt 0:
00:00]} 3. Qe2 {[%emt 0:00:09]} Nf6 {[%emt 0:02:53]} 4. Nf3 {[%emt 0:00:38]} b6
{[%emt 0:11:31]} 5. g3 {[%emt 0:02:21]} Bb7 {[%emt 0:01:40]} 6. e5 {[%emt 0:00:
00]} Nfd7 {[%emt 0:00:21]} 7. Bg2 {[%emt 0:00:34]} c5 {[%emt 0:10:44]} 8. O-O {
[%emt 0:01:46]} Nc6 {[%emt 0:00:42]} 9. c4 {[%emt 0:00:57]} dxc4 {[%emt 0:00:
00]} 10. dxc4 {[%emt 0:03:53]} Qc7 {[%emt 0:01:07]} 11. Bf4 {[%emt 0:00:34]} h6
{[%emt 0:05:00]} 12. h4 {[%emt 0:00:16]} O-O-O {[%emt 0:03:23]} 13. Nc3 {
[%emt 0:00:21]} a6 {[%emt 0:00:10]} 14. Rad1 {[%emt 0:03:15]} Be7 {[%emt 0:00:
00]} 15. Nd5 {[%emt 0:14:07]} Qb8 {[%emt 0:08:22]} 16. Rd2 {[%emt 0:15:33]} Qa8
{[%emt 0:05:27]} 17. a3 {[%emt 0:08:07]} Rhg8 {[%emt 0:17:57]} 18. Rfd1 {
[%emt 0:13:24]} exd5 {[%emt 0:16:54]} 19. cxd5 {[%emt 0:00:05]} g5 {[%emt 0:00:
00]} 20. dxc6 {[%emt 0:03:46]} Bxc6 {[%emt 0:00:02]} 21. hxg5 {[%emt 0:00:32]}
hxg5 {[%emt 0:01:00]} 22. e6 {[%emt 0:02:35]} fxe6 {[%emt 0:02:44]} 23. Bd6 {
[%emt 0:00:02]} Rge8 {[%emt 0:01:15]} 24. Bxe7 {[%emt 0:03:53]} Rxe7 {[%emt 0:
00:00]} 25. Rd6 {[%emt 0:00:08]} Rde8 {[%emt 0:01:00]} 26. Rxc6+ {[%emt 0:00:
00]} Qxc6 {[%emt 0:00:02]} 27. Nd4 {[%emt 0:00:13]} Qa4 {[%emt 0:00:01]} 28. b3
{[%emt 0:04:11]} Qxd4 {[%emt 0:01:44]} 29. Qxa6+ {[%emt 0:00:55]} Kc7 {[%emt 0:
00:00]} 30. Rxd4 {[%emt 0:00:29]} cxd4 {[%emt 0:00:01]} 31. Qc4+ {[%emt 0:00:
00]} Kd8 {[%emt 0:00:42]} 32. Qxd4 {[%emt 0:00:13]} e5 {[%emt 0:00:24]} 33. Qd2
{[%emt 0:00:01]} e4 {[%emt 0:00:25]} 34. Qxg5 {[%emt 0:00:11]} Kc7 {[%emt 0:00:
00]} 35. Qe3 {[%emt 0:01:10]} Re5 {[%emt 0:00:55]} 36. b4 {[%emt 0:00:53]} Kd6
{[%emt 0:00:31]} 37. Bh3 {[%emt 0:00:42]} R8e7 {[%emt 0:00:37]} 38. Bxd7 {
[%emt 0:01:09]} Kxd7 {[%emt 0:00:01]} 39. Qxb6 {[%emt 0:00:34]} e3 {[%emt 0:00:
00]} 40. Qa7+ {[%emt 0:00:48]} Ke8 {[%emt 0:00:17]} 41. Qa8+ {[%emt 0:30:24]}
Kd7 {[%emt 0:30:38]} 42. fxe3 {[%emt 0:00:20]} Rxe3 {[%emt 0:00:03]} 43. Qb7+ {
[%emt 0:02:00]} Ke8 {[%emt 0:01:29]} 44. Qb8+ {[%emt 0:00:12]} Kd7 {[%emt 0:00:
00]} 45. a4 {[%emt 0:05:44]} Re2 {[%emt 0:00:00]} 46. Qb5+ {[%emt 0:00:00]} Kd8
{[%emt 0:00:00]} 47. Qd3+ {[%emt 0:00:00]} Ke8 {[%emt 0:00:00]} 48. Qg6+ {
[%emt 0:00:00]} Kd7 {[%emt 0:00:00]} 49. b5 {[%emt 0:00:00]} Rb2 {[%emt 0:00:
00]} 50. Qc6+ {[%emt 0:00:00]} Kd8 {[%emt 0:00:00]} 51. Qf6 {[%emt 0:00:00]}
Rd2 {[%emt 0:00:00]} 52. Qg5 {[%emt 0:00:00]} Rb2 {[%emt 0:00:07]} 53. a5 {
[%emt 0:00:00]} Ke8 {[%emt 0:00:51]} 54. Qh5+ {[%emt 0:00:00]} Kd7 {[%emt 0:00:
00]} 55. Qd1+ {[%emt 0:00:00]} Ke8 {[%emt 0:00:10]} 56. b6 {[%emt 0:00:00]}
Ree2 {[%emt 0:00:04]} 57. Qxe2+ {[%emt 0:00:00]} Rxe2 {[%emt 0:00:02]} 58. b7 {
[%emt 0:00:00]} 1-0

[Event "44th Chess Olympiad Open 2022"]
[Site "Chennai"]
[Date "2022.08.03"]
[Round "6.58"]
[White "Alharthi, Ahmed Mohammed A"]
[Black "Laohawirapap, Prin"]
[Result "1/2-1/2"]
[WhiteElo "1935"]
[BlackElo "2230"]
[Annotator "TA"]
[PlyCount "82"]
[EventDate "2022.??.??"]
[TimeControl "60"]

{[%evp 16,82,0,14,2,-9,12,9,25,0,0,-22,0,0,16,0,0,0,0,0,7,0,0,0,0,-25,-22,-11,
-15,-6,-4,-6,0,-25,-23,-37,-20,-16,-15,-33,-27,-30,0,0,0,0,0,0,0,-7,-7,-22,-30,
-42,0,0,0,0,0,0,0,0,0,0,0,0,0,0,0]} 1. d4 {[%emt 0:00:05]} Nf6 {[%emt 0:00:04]}
2. Bf4 {[%emt 0:00:09]} g6 {[%emt 0:00:05]} 3. e3 {[%emt 0:00:14]} Bg7 {
[%emt 0:00:10]} 4. Nf3 {[%emt 0:00:26]} O-O {[%emt 0:00:09]} 5. c3 {[%emt 0:00:
00]} d6 {[%emt 0:00:23]} 6. h3 {[%emt 0:00:47]} Nbd7 {[%emt 0:00:33]} 7. Be2 {
[%emt 0:00:31]} b6 {[%emt 0:01:43]} 8. O-O {[%emt 0:00:34]} Bb7 {[%emt 0:00:57]
} 9. a4 {[%emt 0:02:33]} a6 {[%emt 0:06:51] A48:1 d4 Nf6 2 Nf3 g6: Torre,
London and Colle Systems.} 10. Qb3 {[%emt 0:01:38]} Rb8 {[%emt 0:25:43]} 11.
Rd1 {[%emt 0:07:15] [#]} Qe8 $146 {[%emt 0:01:53]} ({Predecessor:} 11... e6 12.
Nbd2 Qe7 13. Bh2 Kh8 14. Qa3 Rg8 15. Ne5 Bf8 16. Nxd7 Qxd7 17. Bd3 Qc6 {
0-1 (50) Zavurka,R (2183)-Aguettaz,M (2356) Olomouc 2007}) 12. Na3 {[%emt 0:00:
00]} e5 {[%emt 0:02:53]} 13. dxe5 {[%emt 0:04:03]} dxe5 {[%emt 0:08:51]} 14.
Bh2 {[%emt 0:00:23]} Qe7 {[%emt 0:02:30]} 15. Qb4 {[%emt 0:06:40]} Rfe8 {
[%emt 0:17:07]} 16. Qxe7 {[%emt 0:07:45]} Rxe7 {[%emt 0:00:14]} 17. Nc2 {
[%emt 0:02:03]} a5 {[%emt 0:05:39]} 18. Na3 {[%emt 0:02:48]} Ne4 {[%emt 0:00:
00]} 19. Bc4 {[%emt 0:09:38]} Nd6 {[%emt 0:07:00]} 20. Bd5 {[%emt 0:04:52]}
Bxd5 {[%emt 0:00:15]} 21. Rxd5 {[%emt 0:00:09]} f6 {[%emt 0:00:40]} 22. Nb5 {
[%emt 0:03:08]} Nxb5 {[%emt 0:01:31]} 23. axb5 {[%emt 0:00:23]} Nc5 {[%emt 0:
00:00]} 24. Ne1 {[%emt 0:08:02]} Ree8 {[%emt 0:02:54]} 25. Nd3 {[%emt 0:02:07]}
Nxd3 {[%emt 0:03:13]} 26. Rxd3 {[%emt 0:00:06]} Rbd8 {[%emt 0:00:07]} 27. Rad1
{[%emt 0:01:11]} Rxd3 {[%emt 0:00:03]} 28. Rxd3 $15 {[%emt 0:00:34] Endgame
KRB-KRB} Bf8 {[%emt 0:00:04]} 29. Kf1 {[%emt 0:04:22]} Bd6 {[%emt 0:00:00]} 30.
e4 {[%emt 0:00:12]} Kf7 {[%emt 0:01:05]} 31. f3 {[%emt 0:00:30]} Ke6 {[%emt 0:
00:29]} 32. Bg1 {[%emt 0:00:47]} Ra8 {[%emt 0:01:19]} 33. c4 {[%emt 0:00:00]}
a4 {[%emt 0:00:07]} 34. Be3 {[%emt 0:03:41]} a3 {[%emt 0:00:49]} 35. bxa3 {
[%emt 0:00:05] The position is equal.} Bxa3 {[%emt 0:01:11]} 36. c5 {[%emt 0:
03:38]} bxc5 {[%emt 0:01:02]} 37. Rc3 $1 {[%emt 0:01:15]} Bb4 {[%emt 0:00:00]}
38. Rc1 {[%emt 0:00:51]} Kd6 {[%emt 0:00:21]} 39. Rd1+ $1 {[%emt 0:00:00]} Ke6
{[%emt 0:00:05]} 40. Rc1 {[%emt 0:00:10]} Kd6 {[%emt 0:00:09]} 41. Rd1+ $1 {
[%emt 0:30:18]} Ke6 {[%emt 0:30:18] Weighted Error Value: White=0.06 (flawless)
/Black=0.06 (flawless)} 1/2-1/2

[Event "44th Chess Olympiad Open 2022"]
[Site "Chennai"]
[Date "2022.08.03"]
[Round "6.59"]
[White "Tagelsir, Abubaker"]
[Black "Abdirahman Omar Sheikh"]
[Result "1/2-1/2"]
[WhiteElo "2232"]
[BlackElo "2051"]
[Annotator "NA RC"]
[PlyCount "60"]
[EventDate "2022.??.??"]
[TimeControl "60"]

1. Nf3 {[%emt 0:00:12]} d5 {[%emt 0:01:12]} 2. g3 {[%emt 0:00:06]} Nf6 {
[%emt 0:00:36]} 3. Bg2 {[%emt 0:00:07]} c5 {[%emt 0:04:14]} 4. c4 {[%emt 0:00:
00]} e6 {[%emt 0:03:01]} 5. cxd5 {[%emt 0:01:07]} exd5 {[%emt 0:00:00]} 6. d4 {
[%emt 0:00:06]} c4 {[%emt 0:00:00]} 7. O-O {[%emt 0:01:28]} Be7 {[%emt 0:00:00]
} 8. Nc3 {[%emt 0:01:35]} O-O {[%emt 0:01:03]} 9. Ne5 {[%emt 0:01:38]} Nc6 {
[%emt 0:03:14]} 10. Be3 {[%emt 0:03:50]} Be6 {[%emt 0:03:02]} 11. b3 {[%emt 0:
00:00]} cxb3 {[%emt 0:03:44]} 12. Qxb3 {[%emt 0:00:18]} Nxe5 {[%emt 0:01:33]}
13. dxe5 {[%emt 0:00:08]} d4 {[%emt 0:01:08]} 14. Qxb7 {[%emt 0:00:36]} Rb8 {
[%emt 0:01:30]} 15. Qxa7 {[%emt 0:03:02]} dxe3 {[%emt 0:00:32]} 16. exf6 {
[%emt 0:00:21]} exf2+ {[%emt 0:00:27]} 17. Qxf2 {[%emt 0:07:23]} Bxf6 {[%emt 0:
00:00]} 18. Rad1 {[%emt 0:00:11]} Qa5 {[%emt 0:02:02]} 19. Nd5 {[%emt 0:01:04]}
Bd8 {[%emt 0:01:16]} 20. e3 {[%emt 0:03:15]} Rb5 {[%emt 0:05:30]} 21. Qd2 {
[%emt 0:03:50]} Bg5 {[%emt 0:02:50]} 22. Qd3 {[%emt 0:08:11]} Rb2 {[%emt 0:00:
00]} 23. h4 {[%emt 0:07:17]} Qxa2 {[%emt 0:02:06]} 24. Be4 {[%emt 0:00:08]} Bh3
{[%emt 0:07:48]} 25. Nc3 {[%emt 0:05:03]} Rg2+ {[%emt 0:00:52]} 26. Kh1 {
[%emt 0:00:10]} Rh2+ {[%emt 0:00:04]} 27. Kg1 {[%emt 0:00:05]} Rg2+ {[%emt 0:
00:00]} 28. Kh1 {[%emt 0:00:06]} Rh2+ {[%emt 0:00:16]} 29. Kg1 {[%emt 0:00:30]}
Rg2+ {[%emt 0:01:13]} 30. Kh1 {[%emt 0:00:03]} Rh2+ {[%emt 0:00:07]} 1/2-1/2

[Event "44th Chess Olympiad Open 2022"]
[Site "Chennai"]
[Date "2022.08.03"]
[Round "6.59"]
[White "Abdelhakiem Abdellatief Nogda"]
[Black "Islam Sh.Nour, Kassim"]
[Result "0-1"]
[WhiteElo "1960"]
[BlackElo "1873"]
[Annotator "NA RC"]
[PlyCount "122"]
[EventDate "2022.??.??"]
[TimeControl "60"]

1. d4 {[%emt 0:00:05]} d5 {[%emt 0:00:26]} 2. c4 {[%emt 0:00:18]} e6 {[%emt 0:
00:00]} 3. Nf3 {[%emt 0:00:36]} Nf6 {[%emt 0:00:33]} 4. a3 {[%emt 0:00:24]} Be7
{[%emt 0:00:15]} 5. Nc3 {[%emt 0:00:09]} a6 {[%emt 0:00:21]} 6. e3 {[%emt 0:00:
00]} dxc4 {[%emt 0:00:29]} 7. Bxc4 {[%emt 0:00:15]} b5 {[%emt 0:00:10]} 8. Bd3
{[%emt 0:00:51]} Bb7 {[%emt 0:00:07]} 9. O-O {[%emt 0:02:12]} Nbd7 {[%emt 0:00:
00]} 10. b4 {[%emt 0:00:31]} O-O {[%emt 0:01:25]} 11. e4 {[%emt 0:01:26]} Nb6 {
[%emt 0:00:25]} 12. Bg5 {[%emt 0:02:10]} h6 {[%emt 0:00:19]} 13. Bxf6 {[%emt 0:
00:00]} Bxf6 {[%emt 0:00:05]} 14. e5 {[%emt 0:00:09]} Be7 {[%emt 0:00:10]} 15.
Ne4 {[%emt 0:00:59]} f5 {[%emt 0:00:59]} 16. exf6 {[%emt 0:01:33]} Bxf6 {
[%emt 0:00:07]} 17. Bc2 {[%emt 0:01:39]} Nc4 {[%emt 0:14:54]} 18. Qd3 {[%emt 0:
00:00]} Bd5 {[%emt 0:03:58]} 19. Rac1 {[%emt 0:01:48]} a5 {[%emt 0:14:30]} 20.
Ra1 {[%emt 0:11:41]} Qe7 {[%emt 0:03:53]} 21. Nc3 {[%emt 0:03:10]} g5 {[%emt 0:
00:00]} 22. Nxb5 {[%emt 0:04:54]} Qg7 {[%emt 0:01:28]} 23. Nxc7 {[%emt 0:03:28]
} Qxc7 {[%emt 0:00:28]} 24. Bb3 {[%emt 0:01:10]} Nd6 {[%emt 0:04:02]} 25. Bxd5
{[%emt 0:01:52]} exd5 {[%emt 0:00:12]} 26. Rac1 {[%emt 0:00:22]} Qg7 {[%emt 0:
00:00]} 27. Rc5 {[%emt 0:00:29]} axb4 {[%emt 0:01:05]} 28. axb4 {[%emt 0:00:45]
} Qb7 {[%emt 0:09:37]} 29. Qg6+ {[%emt 0:03:09]} Qg7 {[%emt 0:02:43]} 30. Qc2 {
[%emt 0:00:18]} Rfc8 {[%emt 0:02:13]} 31. Rc1 {[%emt 0:01:24]} Nc4 {[%emt 0:00:
00]} 32. Qf5 {[%emt 0:00:47]} Rd8 {[%emt 0:01:32]} 33. Rxd5 {[%emt 0:00:41]}
Qf7 {[%emt 0:01:13]} 34. Rc5 {[%emt 0:03:11]} Nd6 {[%emt 0:00:25]} 35. Qb1 {
[%emt 0:02:51]} Rd7 {[%emt 0:02:13]} 36. h3 {[%emt 0:01:55]} Ra2 {[%emt 0:00:
00]} 37. Qd3 {[%emt 0:07:42]} Bg7 {[%emt 0:03:22]} 38. b5 {[%emt 0:02:28]} Rb7
{[%emt 0:05:29]} 39. Rc6 {[%emt 0:03:37]} Nxb5 {[%emt 0:01:51]} 40. Rc8+ {
[%emt 0:00:46]} Bf8 {[%emt 0:00:07]} 41. R1c6 {[%emt 0:30:11]} Kg7 {[%emt 0:00:
00]} 42. Qe4 {[%emt 0:03:00]} Re7 {[%emt 0:01:36]} 43. Ne5 {[%emt 0:02:38]}
Qxf2+ {[%emt 0:05:21]} 44. Kh2 {[%emt 0:00:09]} Qf4+ {[%emt 0:00:09]} 45. Qxf4
{[%emt 0:00:17]} gxf4 {[%emt 0:00:06]} 46. Rg6+ {[%emt 0:00:13]} Kh7 {[%emt 0:
00:00]} 47. Rxf8 {[%emt 0:00:41]} Nxd4 {[%emt 0:00:16]} 48. Rfg8 {[%emt 0:00:
00]} Re2 {[%emt 0:00:38]} 49. Rg4 {[%emt 0:06:37]} R2xe5 {[%emt 0:00:18]} 50.
Rd8 {[%emt 0:00:17]} Ne6 {[%emt 0:00:43]} 51. Rc8 {[%emt 0:00:28]} Rg5 {
[%emt 0:00:44]} 52. Rc4 {[%emt 0:02:00]} Kg6 {[%emt 0:00:46]} 53. Re4 {[%emt 0:
00:00]} Rxg4 {[%emt 0:00:23]} 54. hxg4 {[%emt 0:00:11]} Kf6 {[%emt 0:01:30]}
55. g3 {[%emt 0:01:34]} f3 {[%emt 0:00:09]} 56. Kg1 {[%emt 0:00:20]} Ng5 {
[%emt 0:00:15]} 57. Ra4 {[%emt 0:01:22]} Kg6 {[%emt 0:01:34]} 58. Kf2 {[%emt 0:
00:00]} Rf7 {[%emt 0:00:16]} 59. Rd4 {[%emt 0:00:21]} Nh3+ {[%emt 0:00:14]} 60.
Kf1 {[%emt 0:01:07]} Ra7 {[%emt 0:00:29]} 61. Rd1 {[%emt 0:02:32]} Kg5 {
[%emt 0:00:26]} 0-1

[Event "44th Chess Olympiad Open 2022"]
[Site "Chennai"]
[Date "2022.08.03"]
[Round "6.59"]
[White "Ali Abdullahi, Farah"]
[Black "Abdelazeez, Mohamed Abdalla"]
[Result "0-1"]
[WhiteElo "1892"]
[BlackElo "2182"]
[Annotator "NA RC"]
[PlyCount "48"]
[EventDate "2022.??.??"]
[TimeControl "60"]

1. e4 {[%emt 0:00:02]} d5 {[%emt 0:00:56]} 2. exd5 {[%emt 0:00:57]} Qxd5 {
[%emt 0:00:08]} 3. d4 {[%emt 0:00:48]} e5 {[%emt 0:06:22]} 4. dxe5 {[%emt 0:00:
00]} Qxd1+ {[%emt 0:00:11]} 5. Kxd1 {[%emt 0:00:01]} Nc6 {[%emt 0:00:10]} 6.
Bb5 {[%emt 0:05:21]} Bd7 {[%emt 0:01:00]} 7. e6 {[%emt 0:02:00]} Bxe6 {[%emt 0:
00:00]} 8. Bxc6+ {[%emt 0:00:37]} bxc6 {[%emt 0:00:08]} 9. Bd2 {[%emt 0:07:32]}
O-O-O {[%emt 0:00:20]} 10. Kc1 {[%emt 0:00:04]} Bc5 {[%emt 0:00:11]} 11. f3 {
[%emt 0:00:06]} Ne7 {[%emt 0:00:20]} 12. b4 {[%emt 0:02:55]} Bd4 {[%emt 0:00:
00]} 13. c3 {[%emt 0:06:36]} Bf6 {[%emt 0:00:08]} 14. Ne2 {[%emt 0:01:05]} Nd5
{[%emt 0:03:43]} 15. a3 {[%emt 0:01:19]} Nb6 {[%emt 0:01:22]} 16. Be3 {[%emt 0:
00:00]} Bc4 {[%emt 0:03:06]} 17. Nd4 {[%emt 0:09:50]} Rhe8 {[%emt 0:00:12]} 18.
Bf2 {[%emt 0:02:59]} Bg5+ {[%emt 0:00:08]} 19. Nd2 {[%emt 0:01:57]} Bxd2+ {
[%emt 0:00:46]} 20. Kc2 {[%emt 0:10:25]} Na4 {[%emt 0:04:28]} 21. Be1 {[%emt 0:
00:00]} Be3 {[%emt 0:01:59]} 22. Nxc6 {[%emt 0:01:47]} Rd5 {[%emt 0:06:37]} 23.
Na5 {[%emt 0:02:33]} Be2 {[%emt 0:08:54]} 24. h4 {[%emt 0:08:27]} c5 {[%emt 0:
00:00]} 0-1